fUSD/lending_fUSD_20240506
["ID","MTS","AMOUNT","RATE_DAILY","PERIOD"]
[326471709,1714961447056,-500.0,0.000225,2]
[326471710,1714961447065,-500.0,0.000225,2]
[326471711,1714961447076,-500.0,0.000225,2]
[326471712,1714961447086,-500.0,0.000225,2]
[326471713,1714961447096,-500.0,0.000225,2]
[326471714,1714961447109,-500.0,0.000225,2]
[326471715,1714961447119,-500.0,0.000225,2]
[326471716,1714961447128,-500.0,0.000225,2]
[326471717,1714961447138,-500.0,0.000225,2]
[326471718,1714961447147,-500.0,0.000225,2]
[326471719,1714961447157,-500.0,0.000225,2]
[326471720,1714961447166,-500.0,0.000225,2]
[326471721,1714961447176,-500.0,0.000225,2]
[326471722,1714961447185,-500.0,0.000225,2]
[326471723,1714961447194,-500.0,0.000225,2]
[326471724,1714961447206,-500.0,0.000225,2]
[326471725,1714961447215,-500.0,0.000225,2]
[326471726,1714961447226,-500.0,0.000225,2]
[326471727,1714961447236,-500.0,0.000225,2]
[326471728,1714961447245,-500.0,0.000225,2]
[326471730,1714961447254,-500.0,0.000225,2]
[326471732,1714961447264,-500.0,0.000225,2]
[326471734,1714961447273,-500.0,0.000225,2]
[326471736,1714961447283,-500.0,0.000225,2]
[326471738,1714961447292,-500.0,0.000225,2]
[326471740,1714961447302,-500.0,0.000225,2]
[326471742,1714961447311,-500.0,0.000225,2]
[326471744,1714961447324,-500.0,0.000225,2]
[326471746,1714961447333,-500.0,0.000225,2]
[326471748,1714961447343,-500.0,0.000225,2]
[326471750,1714961447352,-500.0,0.000225,2]
[326471752,1714961447362,-500.0,0.000225,2]
[326471754,1714961447372,-500.0,0.000225,2]
[326471756,1714961447382,-500.0,0.000225,2]
[326471758,1714961447394,-500.0,0.000225,2]
[326471760,1714961447404,-500.0,0.000225,2]
[326471762,1714961447413,-500.0,0.000225,2]
[326471764,1714961447422,-500.0,0.000225,2]
[326471766,1714961447431,-500.0,0.000225,2]
[326471768,1714961447441,-500.0,0.000225,2]
[326471770,1714961447451,-500.0,0.000225,2]
[326471772,1714961447460,-500.0,0.000225,2]
[326471773,1714961447470,-500.0,0.000225,2]
[326471775,1714961447478,-500.0,0.000225,2]
[326471776,1714961447489,-500.0,0.000225,2]
[326471777,1714961447498,-500.0,0.000225,2]
[326471778,1714961447507,-500.0,0.000225,2]
[326471779,1714961447517,-500.0,0.000225,2]
[326471780,1714961447527,-500.0,0.000225,2]
[326471781,1714961447538,-500.0,0.000225,2]
[326471782,1714961447547,-500.0,0.000225,2]
[326471783,1714961447556,-500.0,0.000225,2]
[326471784,1714961447566,-500.0,0.000225,2]
[326471785,1714961447577,-500.0,0.000225,2]
[326471786,1714961447591,-500.0,0.000225,2]
[326471787,1714961447601,-500.0,0.000225,2]
[326471788,1714961447610,-500.0,0.000225,2]
[326471789,1714961447620,-500.0,0.000225,2]
[326471790,1714961447630,-500.0,0.000225,2]
[326471791,1714961447639,-500.0,0.000225,2]
[326471792,1714961447648,-500.0,0.000225,2]
[326471793,1714961447660,-500.0,0.000225,2]
[326471795,1714961447669,-500.0,0.000225,2]
[326471797,1714961447678,-500.0,0.000225,2]
[326471799,1714961447687,-500.0,0.000225,2]
[326471801,1714961447698,-500.0,0.000225,2]
[326471802,1714961447707,-500.0,0.000225,2]
[326471804,1714961447716,-500.0,0.000225,2]
[326471807,1714961447725,-500.0,0.000225,2]
[326471808,1714961447735,-500.0,0.000225,2]
[326471810,1714961447743,-500.0,0.000225,2]
[326471813,1714961447753,-500.0,0.000225,2]
[326471815,1714961447763,-500.0,0.000225,2]
[326471817,1714961447772,-155.30860763,0.00022571,2]
[326471818,1714961447782,-159.79220094,0.00022613,2]
[326471820,1714961447793,-160.61554908,0.00022789,2]
[326471822,1714961447803,-155.30860763,0.0002288,2]
[326471824,1714961447812,-216.86479187,0.0002288,2]
[326471826,1714961447822,-3792.59685991,0.00022894,2]
[326471828,1714961447831,-7500.0,0.000229,2]
[326471830,1714961447841,-160.28510481,0.00022938,2]
[326471833,1714961447851,-150.45,0.0002299,2]
[326471835,1714961447860,-17699.97824205,0.00023,2]
[326471837,1714961447870,-500.0,0.00023,2]
[326471839,1714961447879,-500.0,0.00023,2]
[326471841,1714961447891,-500.0,0.00023,2]
[326471843,1714961447900,-500.0,0.00023,2]
[326471845,1714961447909,-500.0,0.00023,2]
[326471847,1714961447918,-500.0,0.00023,2]
[326471849,1714961447927,-500.0,0.00023,2]
[326471851,1714961447936,-500.0,0.00023,2]
[326471853,1714961447946,-500.0,0.00023,2]
[326471855,1714961447955,-500.0,0.00023,2]
[326471857,1714961447964,-500.0,0.00023,2]
[326471858,1714961447973,-500.0,0.00023,2]
[326471860,1714961447985,-500.0,0.00023,2]
[326471862,1714961447994,-500.0,0.00023,2]
[326471864,1714961448003,-500.0,0.00023,2]
[326471866,1714961448012,-500.0,0.00023,2]
[326471869,1714961448026,-500.0,0.00023,2]
[326471871,1714961448035,-500.0,0.00023,2]
[326471873,1714961448045,-500.0,0.00023,2]
[326471875,1714961448055,-500.0,0.00023,2]
[326471877,1714961448068,-500.0,0.00023,2]
[326471878,1714961448078,-500.0,0.00023,2]
[326471881,1714961448087,-500.0,0.00023,2]
[326471883,1714961448097,-500.0,0.00023,2]
[326471885,1714961448106,-500.0,0.00023,2]
[326471886,1714961448115,-500.0,0.00023,2]
[326471888,1714961448124,-500.0,0.00023,2]
[326471890,1714961448133,-500.0,0.00023,2]
[326471892,1714961448142,-500.0,0.00023,2]
[326471894,1714961448151,-500.0,0.00023,2]
[326471896,1714961448160,-500.0,0.00023,2]
[326471898,1714961448171,-500.0,0.00023,2]
[326471900,1714961448180,-500.0,0.00023,2]
[326471902,1714961448190,-500.0,0.00023,2]
[326471904,1714961448200,-500.0,0.00023,2]
[326471906,1714961448210,-500.0,0.00023,2]
[326471908,1714961448219,-500.0,0.00023,2]
[326471910,1714961448228,-500.0,0.00023,2]
[326471912,1714961448238,-500.0,0.00023,2]
[326471914,1714961448247,-500.0,0.00023,2]
[326471916,1714961448258,-500.0,0.00023,2]
[326471918,1714961448267,-500.0,0.00023,2]
[326471919,1714961448276,-500.0,0.00023,2]
[326471920,1714961448286,-500.0,0.00023,2]
[326471921,1714961448295,-500.0,0.00023,2]
[326471922,1714961448304,-500.0,0.00023,2]
[326471923,1714961448314,-500.0,0.00023,2]
[326471924,1714961448323,-500.0,0.00023,2]
[326471925,1714961448332,-500.0,0.00023,2]
[326471926,1714961448341,-500.0,0.00023,2]
[326471927,1714961448353,-500.0,0.00023,2]
[326471928,1714961448362,-500.0,0.00023,2]
[326471929,1714961448371,-500.0,0.00023,2]
[326471930,1714961448380,-500.0,0.00023,2]
[326471931,1714961448389,-500.0,0.00023,2]
[326471932,1714961448398,-500.0,0.00023,2]
[326471933,1714961448407,-500.0,0.00023,2]
[326471934,1714961448416,-500.0,0.00023,2]
[326471935,1714961448425,-500.0,0.00023,2]
[326471936,1714961448434,-500.0,0.00023,2]
[326471937,1714961448446,-500.0,0.00023,2]
[326471938,1714961448456,-500.0,0.00023,2]
[326471939,1714961448465,-500.0,0.00023,2]
[326471940,1714961448475,-500.0,0.00023,2]
[326471941,1714961448484,-500.0,0.00023,2]
[326471942,1714961448493,-500.0,0.00023,2]
[326471943,1714961448503,-500.0,0.00023,2]
[326471944,1714961448513,-500.0,0.00023,2]
[326471945,1714961448522,-500.0,0.00023,2]
[326471946,1714961448532,-500.0,0.00023,2]
[326471947,1714961448541,-500.0,0.00023,2]
[326471948,1714961448550,-500.0,0.00023,2]
[326471949,1714961448559,-314.17535094,0.00023021,2]
[326471950,1714961448568,-18378.82920242,0.00023038,2]
[326471951,1714961448582,-2001.32534763,0.000234,2]
[326471952,1714961448591,-154.76918797,0.00023401,2]
[326471954,1714961448601,-502.0,0.000235,2]
[326471956,1714961448610,-150.0,0.000235,3]
[326471958,1714961448622,-200.0,0.00023501,2]
[326471959,1714961448631,-155.32453678,0.00023501,2]
[326471960,1714961448643,-1926.79635816,0.00023501,2]
[326471961,1714961448653,-202.2649797,0.00023501,2]
[326471962,1714961448662,-255.9,0.00023671,2]
[326471963,1714961448671,-18378.82920234,0.00023674,2]
[326471964,1714961448681,-222.651,0.00023718,2]
[326471965,1714961448690,-1227.0,0.00023718,2]
[326471966,1714961448701,-2451.0,0.00023718,2]
[326471967,1714961448711,-444.0,0.00023718,2]
[326471968,1714961448720,-288.0,0.00023718,2]
[326471969,1714961448729,-2294.0,0.00023718,2]
[326471970,1714961448741,-5904.0,0.00023718,2]
[326471971,1714961448750,-1058.0,0.00023718,2]
[326471972,1714961448759,-154.5676832,0.0002377,2]
[326471973,1714961448768,-289.59825313,0.00023967,2]
[326471974,1714961448778,-432.28243981,0.00024,2]
[326471975,1714961448787,-600.0,0.00024,3]
[326471976,1714961448797,-150.0,0.00024,4]
[326471977,1714961448807,-154.83275652,0.00024134,2]
[326471978,1714961448817,-154.83275652,0.00024169,2]
[326471979,1714961448827,-3792.59685991,0.00024213,2]
[326471980,1714961448836,-156.13471876,0.00024216,2]
[326471981,1714961448846,-150.45,0.000243,2]
[326471982,1714961448855,-289.59825313,0.00024303,2]
[326471983,1714961448864,-18378.82920234,0.0002431,2]
[326471984,1714961448873,-289.59825313,0.00024423,2]
[326471985,1714961448882,-150.0,0.000245,4]
[326471986,1714961448892,-289.59825313,0.00024587,2]
[326471987,1714961448901,-314.17535094,0.00024774,2]
[326471988,1714961448912,-289.59825313,0.0002481,2]
[326471989,1714961448925,-151.0,0.0002483,2]
[326471990,1714961448936,-250.49088,0.0002483,2]
[326471991,1714961448948,-159.79220094,0.00024864,2]
[326471992,1714961448958,-203.388663,0.00024932,2]
[326471993,1714961448968,-216.86479187,0.00024936,2]
[326471994,1714961448978,-18378.82920234,0.00024947,2]
[326471995,1714961448989,-2218.57256714,0.00025,2]
[326471996,1714961449001,-155.0,0.00025,2]
[326471997,1714961449011,-471.60362987,0.00025,2]
[326471998,1714961449022,-2609.00158437,0.00025,2]
[326471999,1714961449031,-5000.0,0.00025,2]
[326472000,1714961449040,-155.47582989,0.00025,2]
[326472001,1714961449049,-3669.04939561,0.00025,2]
[326472002,1714961449058,-150.0,0.00025,4]
[326472003,1714961449067,-500.0,0.00025,2]
[326472004,1714961449077,-20576.2723788,0.00025008,2]
[326472005,1714961449086,-154.76918796,0.00025156,2]
[326472006,1714961449096,-159.79220094,0.00025204,2]
[326472007,1714961449109,-302.0,0.00025247,4]
[326472008,1714961449119,-160.050611,0.00025498,4]
[326472009,1714961449130,-150.0,0.000255,4]
[326472010,1714961449139,-159.79220094,0.00025509,2]
[326472011,1714961449148,-3792.59685991,0.00025532,2]
[326472012,1714961449157,-216.86479187,0.00025542,2]
[326472013,1714961449166,-18378.82920234,0.00025583,2]
[326472014,1714961449175,-604.0,0.00025672,7]
[326472015,1714961449184,-203.388663,0.00025753,2]
[326472016,1714961449195,-216.86479187,0.00025826,2]
[326472017,1714961449205,-155.30860763,0.00025839,2]
[326472018,1714961449213,-154.31905418,0.00025843,2]
[326472019,1714961449223,-289.59825313,0.00025893,2]
[326472020,1714961449231,-154.31905418,0.00025917,2]
[326472021,1714961449240,-650.0,0.00026,3]
[326472022,1714961449249,-150.0,0.00026,4]
[326472023,1714961449259,-166.99392,0.00026103,4]
[326472024,1714961449268,-152.81,0.00026108,2]
[326472025,1714961449277,-18378.82920234,0.00026219,2]
[326472026,1714961449286,-1208.0,0.00026322,30]
[326472027,1714961449295,-214.0,0.00026403,2]
[326472028,1714961449307,-163.76847842,0.00026407,2]
[326472029,1714961449316,-200.02164824,0.00026472,2]
[326472030,1714961449325,-167.050611,0.00026498,4]
[326472031,1714961449334,-150.0,0.000265,5]
[326472032,1714961449343,-311.96,0.0002651,2]
[326472033,1714961449352,-314.17535094,0.00026528,2]
[326472034,1714961449361,-203.388663,0.00026575,2]
[326472035,1714961449370,-902.19,0.00026584,2]
[326472036,1714961449379,-154.83275652,0.00026662,2]
[326472037,1714961449389,-154.83275652,0.00026668,2]
[326472038,1714961449401,-154.83275652,0.00026677,2]
[326472039,1714961449410,-155.0,0.00026695,30]
[326472040,1714961449419,-289.59825313,0.00026702,2]
[326472041,1714961449430,-688.347,0.00026718,2]
[326472042,1714961449439,-288.0,0.00026718,2]
[326472043,1714961449449,-2294.0,0.00026718,2]
[326472044,1714961449458,-5904.0,0.00026718,2]
[326472045,1714961449467,-1058.0,0.00026718,2]
[326472046,1714961449476,-289.59825313,0.00026792,2]
[326472047,1714961449486,-152.76860685,0.00026828,2]
[326472048,1714961449716,-150.45,0.00026845,2]
[326472049,1714961449728,-3792.59685991,0.00026851,2]
[326472050,1714961449738,-18378.82920234,0.00026855,2]
[326472051,1714961449749,-216.86479187,0.00026861,2]
[326472052,1714961449758,-152.76860685,0.00026862,2]
[326472053,1714961449767,-154.76918796,0.00026912,2]
[326472054,1714961449778,-154.31905418,0.00026941,2]
[326472055,1714961449788,-152.76860685,0.00026978,2]
[326472056,1714961449798,-1741.0206567,0.00027,2]
[326472057,1714961449808,-155.0,0.00027,4]
[326472058,1714961449818,-1877.211677,0.00027,2]
[326472059,1714961449827,-8320.06,0.00027,3]
[326472060,1714961449837,-150.0,0.00027,5]
[326472061,1714961449846,-150.86,0.00027068,15]
[326472062,1714961449855,-154.83275652,0.00027081,2]
[326472063,1714961449864,-289.59825313,0.00027177,2]
[326472064,1714961449874,-167.0,0.00027241,2]
[326472065,1714961449884,-152.76860685,0.00027375,2]
[326472066,1714961449894,-154.83275652,0.00027376,2]
[326472067,1714961449903,-301.55154938,0.00027397,2]
[326472068,1714961449912,-203.388663,0.00027397,2]
[326472069,1714961449921,-151.94,0.00027397,2]
[326472070,1714961449931,-3471.02,0.00027397,2]
[326472071,1714961449940,-289.59825313,0.00027403,2]
[326472072,1714961449951,-150.0,0.00027472,2]
[326472073,1714961449960,-18378.82920234,0.00027491,2]
[326472074,1714961449969,-173.050611,0.00027498,8]
[326472075,1714961449978,-150.0,0.000275,5]
[326472076,1714961449988,-154.83275652,0.00027506,2]
[326472077,1714961449998,-1854.62726333,0.00027571,2]
[326472078,1714961450007,-221.13257525,0.00027571,2]
[326472079,1714961450018,-192.35450364,0.00027571,2]
[326472080,1714961450029,-174.27255995,0.00027571,2]
[326472081,1714961450038,-155.30860763,0.00027629,2]
[326472082,1714961450048,-156.83431615,0.00027645,2]
[326472083,1714961450057,-298452.93314381,0.0002767,7]
[326472084,1714961450066,-500.0,0.00027671,4]
[326472085,1714961450078,-1100.99,0.00027671,4]
[326472086,1714961450090,-500.0,0.00027671,4]
[326472087,1714961450100,-500.0,0.00027671,4]
[326472088,1714961450109,-500.0,0.00027671,4]
[326472089,1714961450118,-500.0,0.00027671,4]
[326472090,1714961450127,-500.0,0.00027671,4]
[326472091,1714961450136,-668.63,0.00027671,4]
[326472092,1714961450146,-500.0,0.00027671,4]
[326472093,1714961450155,-500.0,0.00027671,4]
[326472094,1714961450164,-500.0,0.00027671,4]
[326472095,1714961450176,-769.43,0.00027671,4]
[326472096,1714961450191,-500.0,0.00027671,4]
[326472097,1714961450201,-500.0,0.00027671,4]
[326472098,1714961450211,-500.0,0.00027671,4]
[326472099,1714961450220,-500.0,0.00027671,4]
[326472100,1714961450230,-500.0,0.00027671,4]
[326472101,1714961450239,-500.0,0.00027671,4]
[326472102,1714961450249,-500.0,0.00027671,4]
[326472103,1714961450260,-500.0,0.00027671,4]
[326472104,1714961450270,-500.0,0.00027671,4]
[326472105,1714961450279,-500.0,0.00027671,4]
[326472106,1714961450289,-483.7922704,0.00027671,4]
[326472107,1714961450298,-560.26,0.00027671,4]
[326472108,1714961450307,-577.13,0.00027671,4]
[326472109,1714961450317,-500.0,0.00027671,4]
[326472110,1714961450326,-500.0,0.00027671,4]
[326472111,1714961450336,-500.89,0.00027671,4]
[326472112,1714961450346,-500.0,0.00027671,4]
[326472113,1714961450357,-500.0,0.00027671,4]
[326472114,1714961450370,-500.0,0.00027671,4]
[326472115,1714961450385,-500.0,0.00027671,4]
[326472116,1714961450395,-994.6,0.00027671,4]
[326472117,1714961450404,-704.8,0.00027671,4]
[326472118,1714961450413,-500.0,0.00027671,4]
[326472119,1714961450424,-588.07,0.00027671,4]
[326472120,1714961450435,-1477.47,0.00027671,4]
[326472121,1714961450444,-703.55,0.00027671,4]
[326472122,1714961450455,-773.65,0.00027671,4]
[326472123,1714961450464,-1279.35,0.00027671,4]
[326472124,1714961450481,-427.90166699,0.00027671,4]
[326472125,1714961450491,-1526.7,0.00027671,4]
[326472126,1714961450501,-625.77,0.00027671,4]
[326472127,1714961450512,-500.0,0.00027671,4]
[326472128,1714961450523,-573.14,0.00027671,4]
[326472129,1714961450534,-500.0,0.00027671,4]
[326472130,1714961450544,-1193.36,0.00027671,4]
[326472131,1714961450554,-500.0,0.00027671,4]
[326472132,1714961450563,-566.76,0.00027671,4]
[326472133,1714961450573,-1677.32,0.00027671,4]
[326472134,1714961450587,-500.0,0.00027671,4]
[326472135,1714961450597,-500.0,0.00027671,4]
[326472136,1714961450606,-500.0,0.00027671,4]
[326472137,1714961450615,-847.18,0.00027671,4]
[326472138,1714961450626,-849.45,0.00027671,4]
[326472139,1714961450636,-725.31,0.00027671,4]
[326472140,1714961450646,-500.0,0.00027671,4]
[326472141,1714961450658,-867.08,0.00027671,4]
[326472142,1714961450668,-820.64,0.00027671,4]
[326472143,1714961450679,-832.54,0.00027671,4]
[326472144,1714961450689,-1774.99,0.00027671,4]
[326472145,1714961450698,-1938.54,0.00027671,4]
[326472146,1714961450708,-1302.6,0.00027671,4]
[326472147,1714961450717,-1135.9,0.00027671,4]
[326472148,1714961450727,-821.91,0.00027671,4]
[326472149,1714961450737,-727.86,0.00027671,4]
[326472150,1714961450747,-500.0,0.00027671,4]
[326472151,1714961450760,-1205.17,0.00027671,4]
[326472152,1714961450770,-720.81,0.00027671,4]
[326472153,1714961450779,-500.0,0.00027671,4]
[326472154,1714961450789,-857.95,0.00027671,4]
[326472155,1714961450798,-596.55,0.00027671,4]
[326472156,1714961450808,-962.42,0.00027671,4]
[326472157,1714961450817,-1865.18,0.00027671,4]
[326472158,1714961450827,-1167.57,0.00027671,4]
[326472159,1714961450836,-500.0,0.00027671,4]
[326472160,1714961450850,-500.0,0.00027671,4]
[326472161,1714961450859,-635.13,0.00027671,4]
[326472162,1714961450869,-500.0,0.00027671,4]
[326472163,1714961450878,-500.0,0.00027671,4]
[326472164,1714961450888,-547.88,0.00027671,4]
[326472165,1714961450898,-1073.9,0.00027671,4]
[326472166,1714961450908,-500.0,0.00027671,4]
[326472167,1714961450918,-1032.14,0.00027671,4]
[326472168,1714961450927,-1395.72,0.00027671,4]
[326472169,1714961450936,-652.78,0.00027671,4]
[326472170,1714961450955,-500.0,0.00027671,4]
[326472171,1714961450964,-1594.99,0.00027671,4]
[326472172,1714961450974,-500.0,0.00027671,4]
[326472173,1714961450984,-2080.84,0.00027671,4]
[326472174,1714961450994,-559.77,0.00027671,4]
[326472175,1714961451004,-1203.31,0.00027671,4]
[326472176,1714961451014,-500.0,0.00027671,4]
[326472177,1714961451023,-500.0,0.00027671,4]
[326472178,1714961451033,-1932.49,0.00027671,4]
[326472179,1714961451046,-1103.76,0.00027671,4]
[326472180,1714961451056,-500.0,0.00027671,4]
[326472181,1714961451066,-500.0,0.00027671,4]
[326472182,1714961451076,-635.57,0.00027671,4]
[326472183,1714961451086,-500.0,0.00027671,4]
[326472184,1714961451095,-837.1,0.00027671,4]
[326472185,1714961451104,-500.0,0.00027671,4]
[326472186,1714961451114,-500.0,0.00027671,4]
[326472187,1714961451124,-620.88,0.00027671,4]
[326472188,1714961451134,-507.5,0.00027671,4]
[326472189,1714961451143,-559.81,0.00027671,4]
[326472190,1714961451152,-1320.79,0.00027671,4]
[326472191,1714961451162,-217.8431452,0.00027671,4]
[326472192,1714961451171,-500.0,0.00027671,4]
[326472193,1714961451180,-1514.81,0.00027671,4]
[326472194,1714961451189,-500.0,0.00027671,4]
[326472195,1714961451200,-2261.18,0.00027671,4]
[326472196,1714961451209,-1678.39,0.00027671,4]
[326472197,1714961451218,-784.31,0.00027671,4]
[326472198,1714961451228,-500.0,0.00027671,4]
[326472199,1714961451237,-500.0,0.00027671,4]
[326472200,1714961451246,-585.6,0.00027671,4]
[326472201,1714961451255,-2743.06,0.00027671,4]
[326472202,1714961451265,-1226.43,0.00027671,4]
[326472203,1714961451275,-588.41,0.00027671,4]
[326472204,1714961451284,-2226.17,0.00027671,4]
[326472205,1714961451293,-2121.08,0.00027671,4]
[326472206,1714961451303,-892.59,0.00027671,4]
[326472207,1714961451312,-1398.23,0.00027671,4]
[326472208,1714961451325,-500.0,0.00027671,4]
[326472209,1714961451334,-1636.98,0.00027671,4]
[326472210,1714961451344,-519.25500988,0.00027671,4]
[326472211,1714961451354,-2169.12,0.00027671,4]
[326472212,1714961451363,-1149.57,0.00027671,4]
[326472213,1714961451372,-1900.85,0.00027671,4]
[326472214,1714961451382,-1360.13,0.00027671,4]
[326472215,1714961451391,-196.09173273,0.00027671,4]
[326472216,1714961451400,-1328.05,0.00027671,4]
[326472217,1714961451409,-632.28,0.00027671,4]
[326472218,1714961451423,-500.0,0.00027671,4]
[326472219,1714961451432,-924.42,0.00027671,4]
[326472220,1714961451441,-726.28,0.00027671,4]
[326472221,1714961451451,-500.0,0.00027671,4]
[326472222,1714961451460,-570.12,0.00027671,4]
[326472223,1714961451470,-682.26,0.00027671,4]
[326472224,1714961451479,-500.0,0.00027671,4]
[326472225,1714961451489,-924.99,0.00027671,4]
[326472226,1714961451498,-532.48,0.00027671,4]
[326472227,1714961451507,-1655.79,0.00027671,4]
[326472228,1714961451520,-566.65,0.00027671,4]
[326472229,1714961451530,-500.0,0.00027671,4]
[326472230,1714961451539,-767.4,0.00027671,4]
[326472231,1714961451548,-505.19728374,0.00027671,4]
[326472232,1714961451558,-890.14,0.00027671,4]
[326472233,1714961451567,-599.14158912,0.00027671,4]
[326472234,1714961451580,-20000.0,0.00027671,2]
[326472235,1714961451590,-750.47,0.00027671,4]
[326472236,1714961451599,-887.24,0.00027671,4]
[326472237,1714961451609,-733.34,0.00027671,4]
[326472238,1714961451619,-2214.63,0.00027671,4]
[326472239,1714961451628,-1065.74,0.00027671,4]
[326472240,1714961451637,-2323.11,0.00027671,4]
[326472241,1714961451646,-1272.33,0.00027671,4]
[326472242,1714961451658,-1118.02,0.00027671,4]
[326472243,1714961451667,-536.98,0.00027671,4]
[326472244,1714961451675,-500.0,0.00027671,4]
[326472245,1714961451685,-734.66,0.00027671,4]
[326472246,1714961451694,-500.0,0.00027671,4]
[326472247,1714961451703,-504.25,0.00027671,4]
[326472248,1714961451712,-1951.9,0.00027671,4]
[326472249,1714961451721,-1169.05,0.00027671,4]
[326472250,1714961451731,-500.0,0.00027671,4]
[326472251,1714961451740,-1151.0,0.00027671,4]
[326472252,1714961451750,-1386.02,0.00027671,4]
[326472253,1714961451759,-500.0,0.00027671,4]
[326472254,1714961451769,-721.57,0.00027671,4]
[326472255,1714961451778,-1091.42,0.00027671,4]
[326472256,1714961451788,-500.0,0.00027671,4]
[326472257,1714961451800,-840.01,0.00027671,4]
[326472258,1714961451810,-500.0,0.00027671,4]
[326472259,1714961451819,-566.57,0.00027671,4]
[326472260,1714961451829,-500.0,0.00027671,4]
[326472261,1714961451839,-500.0,0.00027671,4]
[326472262,1714961451849,-1175.7,0.00027671,4]
[326472263,1714961451860,-524.17,0.00027671,4]
[326472264,1714961451870,-680.3,0.00027671,4]
[326472265,1714961451882,-500.0,0.00027671,4]
[326472266,1714961451891,-1940.56,0.00027671,4]
[326472267,1714961451903,-1571.92,0.00027671,4]
[326472268,1714961451913,-500.0,0.00027671,4]
[326472269,1714961451922,-1450.23,0.00027671,4]
[326472270,1714961451931,-1257.24,0.00027671,4]
[326472271,1714961451940,-2578.92,0.00027671,2]
[326472272,1714961451949,-1196.12,0.00027671,4]
[326472273,1714961451958,-677.61,0.00027671,4]
[326472274,1714961451967,-1500.0,0.00027671,4]
[326472275,1714961451976,-365.25367275,0.00027671,4]
[326472276,1714961451985,-589.28,0.00027671,4]
[326472277,1714961451995,-2249.82,0.00027671,4]
[326472278,1714961452004,-1835.39,0.00027671,4]
[326472279,1714961452013,-1760.46,0.00027671,4]
[326472280,1714961452024,-500.0,0.00027671,4]
[326472281,1714961452034,-575.71342806,0.00027671,4]
[326472282,1714961452043,-500.0,0.00027671,2]
[326472283,1714961452053,-1542.65,0.00027671,4]
[326472284,1714961452062,-500.0,0.00027671,4]
[326472285,1714961452071,-500.0,0.00027671,4]
[326472286,1714961452080,-970.41,0.00027671,4]
[326472287,1714961452095,-786.88,0.00027671,4]
[326472288,1714961452105,-659.16,0.00027671,4]
[326472289,1714961452188,-842.87,0.00027671,4]
[326472290,1714961452198,-717.93,0.00027671,4]
[326472291,1714961452208,-1422.54,0.00027671,4]
[326472292,1714961452217,-1224.33,0.00027671,4]
[326472293,1714961452226,-1468.19,0.00027671,4]
[326472294,1714961452235,-500.0,0.00027671,4]
[326472295,1714961452244,-759.63,0.00027671,4]
[326472296,1714961452253,-535.82,0.00027671,4]